bitfinex-derivatives/quotes_ETHF0:USTF0_20251003
["timestamp","ask_amount","ask_price","bid_price","bid_amount"]
[1759476536223,4.81892564,4457.1,4457.0,0.89192898]
[1759476536428,4.32596,4457.1,4457.0,0.89192898]
[1759476537110,4.32596,4457.1,4457.0,0.55652898]
[1759476537327,4.32596,4457.1,4456.0,0.1242]
[1759476537328,0.60562,4456.5,4456.4,0.6567]
[1759476537923,0.4036,4456.7,4456.5,0.5569]
[1759476538224,0.4036,4456.7,4456.5,0.55973869]
[1759476538225,0.40361,4456.7,4456.5,0.55973869]
[1759476538820,0.3066,4456.9,4456.5,0.96334869]
[1759476539124,3.2078,4457.1,4456.5,0.96334869]
[1759476539125,3.2078,4457.1,4456.5,0.55973869]
[1759476539322,0.40359,4456.9,4456.8,0.4327]
[1759476539525,0.40359,4456.9,4456.8,0.7656]
[1759476539722,3.61136,4457.1,4456.8,0.7656]
[1759476540027,4.11996,4457.1,4457.0,0.8898]
[1759476540227,3.81336,4457.1,4457.0,1.1138]
[1759476540624,4.11996,4457.1,4457.0,1.1138]
[1759476540929,3.7164,4457.1,4457.0,1.1138]
[1759476541825,3.2078,4457.1,4457.0,1.1138]
[1759476542431,3.7434,4457.1,4457.0,1.1138]
[1759476543821,0.52543,4457.5,4457.0,1.1138]
[1759476544029,0.5356,4457.4,4457.3,0.7222]
[1759476544223,0.7462,4457.4,4457.3,0.7222]
[1759476547628,0.7462,4457.4,4457.3,0.2093]
[1759476547834,0.7462,4457.1,4457.0,0.7377]
[1759476548035,0.7462,4457.1,4457.0,0.9462]
[1759476549235,1.14976,4457.1,4457.0,0.9462]
[1759476549836,1.14976,4457.1,4457.0,0.7222]
[1759476550036,1.14976,4457.1,4457.0,0.9462]
[1759476551640,1.14976,4457.1,4457.0,0.7222]
[1759476551833,1.14976,4457.1,4457.0,0.9462]
[1759476560839,0.3331,4456.8,4456.5,0.54853869]
[1759476561045,0.3331,4456.8,4456.7,0.7222]
[1759476561346,0.5356,4456.8,4456.7,0.7222]
[1759476561548,0.7462,4456.8,4456.7,0.7222]
[1759476564548,0.5356,4456.8,4456.7,0.7222]
[1759476567054,0.7462,4456.8,4456.7,0.7222]
[1759476567459,0.52,4457.4,4457.3,0.7239]
[1759476567659,1.23783619,4457.4,4457.3,0.9479]
[1759476567861,1.23783619,4457.4,4457.3,0.4266]
[1759476569661,1.23783619,4457.4,4457.3,0.224]
[1759476571359,0.40358,4456.9,4456.8,0.3102]
[1759476571562,0.7436,4456.7,4456.6,0.2026]
[1759476571756,0.7436,4456.7,4456.6,0.9479]
[1759476574065,1.1472,4456.7,4456.6,0.9479]
[1759476574961,0.7436,4456.7,4456.6,0.9479]
[1759476575164,0.3219,4457.0,4456.6,0.6377]
[1759476575457,0.5356,4457.3,4457.2,0.7579]
[1759476575658,1.03362091,4457.3,4457.2,0.9819]
[1759476576361,1.24112091,4457.3,4457.2,0.9819]
[1759476576757,1.24112091,4457.3,4457.2,0.5489]
[1759476576964,0.5356,4456.8,4456.7,0.5489]
[1759476577156,0.5356,4456.8,4456.7,0.9819]
[1759476578355,1.14669,4456.8,4456.7,0.9819]
[1759476579259,1.14669,4456.8,4456.7,0.7579]
[1759476579458,1.14669,4456.8,4456.7,0.9819]
[1759476579765,0.7431,4456.8,4456.7,0.9819]
[1759476580361,0.7431,4456.8,4456.7,0.7579]
[1759476580562,0.7431,4456.8,4456.7,0.9819]
[1759476583270,0.5356,4456.8,4456.7,0.9819]
[1759476585472,0.93916,4457.2,4457.1,0.7579]
[1759476585770,1.43009227,4457.2,4457.1,0.9819]
[1759476587366,1.63759227,4457.2,4457.1,0.9819]
[1759476593674,1.63759227,4457.2,4457.1,0.4462]
[1759476593976,1.63759227,4457.2,4457.1,0.7729]
[1759476597282,1.63759227,4457.2,4457.1,0.4462]
[1759476597477,0.4036,4456.7,4456.6,0.3267]
[1759476597684,1.1467,4456.7,4456.6,0.7729]
[1759476597880,1.1467,4456.7,4456.6,0.9819]
[1759476599673,0.4494,4457.0,4456.6,0.9819]
[1759476599878,0.3219,4456.9,4456.8,0.4312]
[1759476600079,0.3219,4456.9,4456.8,0.7579]
[1759476600575,0.3219,4457.0,4456.9,0.3267]
[1759476600780,1.02651067,4457.0,4456.9,0.7579]
[1759476600981,0.5356,4457.0,4456.9,0.7579]
[1759476601382,0.7431,4457.0,4456.9,0.7579]
[1759476601782,0.7369,4456.7,4456.5,0.33563869]
[1759476601975,0.7369,4456.7,4456.6,0.7651]
[1759476602175,0.7369,4456.7,4456.6,0.9749]
[1759476606284,0.7369,4456.7,4456.6,0.7509]
[1759476606584,0.7369,4456.7,4456.6,0.9749]
[1759476607482,0.3096,4456.9,4456.6,1.0457]
[1759476607685,0.3096,4456.9,4456.8,0.7509]
[1759476607886,0.5159,4456.9,4456.8,0.7509]
[1759476608382,0.7369,4456.9,4456.8,0.7509]
[1759476609185,0.7369,4456.9,4456.8,0.9749]
[1759476610087,0.7369,4456.9,4456.8,0.4323]
[1759476610488,0.7369,4456.9,4456.8,0.7651]
[1759476611090,0.7369,4456.9,4456.8,0.9749]
[1759476611991,0.5159,4456.9,4456.8,0.9749]
[1759476614293,0.7369,4456.9,4456.8,0.5411]
[1759476614491,0.7369,4456.9,4456.8,0.7651]
[1759476614992,0.7369,4456.9,4456.8,0.9749]
[1759476616990,1.22566697,4456.9,4456.8,0.4323]
[1759476617294,0.7369,4456.9,4456.8,0.5411]
[1759476617592,1.22566869,4456.9,4456.8,0.4323]
[1759476618592,0.7369,4456.9,4456.8,0.9749]
[1759476620988,0.3096,4457.4,4457.3,0.2083]
[1759476621291,0.7369,4457.4,4457.3,0.9749]
[1759476621492,1.22567783,4457.4,4457.3,0.9749]
[1759476623894,0.40345,4458.4,4457.4,0.40353]
[1759476624097,0.7369,4458.2,4458.1,0.5426]
[1759476624292,0.7369,4458.2,4458.1,0.9749]
[1759476633099,0.541,4458.9,4458.8,0.7302]
[1759476633295,3.2078,4459.0,4458.9,0.7302]
[1759476633599,0.541,4459.0,4458.9,0.7302]
[1759476633795,0.7547,4459.0,4458.9,0.7302]
[1759476634693,0.877,4459.0,4458.9,0.9542]
[1759476634894,0.7547,4459.0,4458.9,0.9542]
[1759476636206,0.33530274,4459.3,4458.9,0.6388]
[1759476636395,0.54370274,4459.3,4459.2,0.7302]
[1759476636595,0.75740274,4459.3,4459.2,0.7302]
[1759476638299,0.00270274,4459.3,4459.2,1.13357]
[1759476638696,0.00270274,4459.3,4459.2,5.7302]
[1759476642399,0.00270274,4459.3,4459.2,0.7302]
[1759476643002,0.21110274,4459.3,4459.2,0.7302]
[1759476643206,0.75740274,4459.3,4459.2,0.9542]
[1759476646300,0.75740274,4459.3,4459.2,0.7302]
[1759476646505,0.75740274,4459.3,4459.2,0.9542]
[1759476647804,1.16076274,4459.3,4459.2,0.2088]
[1759476648004,1.16076274,4459.3,4459.2,0.4328]
[1759476648905,0.75740274,4459.3,4459.2,0.4328]
[1759476649099,0.00270274,4459.3,4459.2,0.9542]
[1759476652310,0.75740274,4459.3,4459.2,0.9542]
[1759476654105,0.00270274,4459.3,4459.2,0.9542]
[1759476654699,0.42480274,4459.3,4459.2,0.7302]
[1759476654909,0.75740274,4459.3,4459.2,0.9542]
[1759476656514,0.54370274,4459.3,4459.2,0.9542]
[1759476658217,0.75740274,4459.3,4459.2,0.9542]
[1759476660006,0.75740274,4459.3,4459.2,0.7302]
[1759476660201,0.75740274,4459.3,4459.2,0.9542]
[1759476661208,0.00270274,4459.3,4459.2,0.9542]
[1759476662307,0.31470274,4459.3,4459.2,0.9542]
[1759476662502,0.00270274,4459.3,4459.2,0.9542]
[1759476663611,0.00270274,4459.3,4459.2,0.224]
[1759476663809,0.31470274,4459.3,4459.2,0.224]
[1759476664910,0.1271,4459.0,4458.8,0.40341]
[1759476665110,0.312,4458.9,4458.8,0.40341]
[1759476665313,0.312,4458.9,4458.8,35.61341]
[1759476666015,0.312,4458.9,4458.8,0.40341]
[1759476666214,0.5298,4458.9,4458.8,0.62741]
[1759476666914,0.5298,4458.9,4458.8,0.40341]
[1759476667216,0.5298,4458.9,4458.8,0.62741]
[1759476667515,0.312,4458.9,4458.8,0.62741]
[1759476667917,0.312,4458.9,4458.8,2.22717487]
[1759476668417,0.312,4458.9,4458.8,0.62741]
[1759476668611,0.312,4458.9,4458.8,0.40341]
[1759476668808,0.312,4458.9,4458.8,0.62741]
[1759476669216,0.312,4458.9,4458.8,0.40341]
[1759476669411,0.312,4458.9,4458.8,0.62741]
[1759476671012,0.312,4458.9,4458.8,5.62741]
[1759476672515,0.4391,4459.0,4458.8,5.62741]
[1759476673115,0.31470274,4459.3,4459.2,0.40337]
[1759476673314,0.31470274,4459.3,4459.2,5.44788905]
[1759476674008,0.31470274,4459.3,4459.2,46.24788905]
[1759476674614,2.74e-06,4459.3,4459.2,49.63517]
[1759476675013,0.312,4459.9,4459.8,0.40332]
[1759476675213,0.312,4459.9,4459.8,0.62732]
[1759476675419,0.312,4459.9,4459.8,2.2396881]
[1759476675915,0.7455569,4459.9,4459.8,0.22558506]
[1759476676318,0.7455569,4459.9,4459.8,0.62890506]
[1759476677314,0.7455569,4459.9,4459.8,0.22558506]
[1759476677619,1.1488669,4459.9,4459.8,0.22558506]
[1759476679615,1.1488669,4459.9,4459.8,0.00158506]
[1759476679821,1.1488669,4459.9,4459.8,0.22558506]
[1759476680410,0.7455569,4459.9,4459.8,0.22558506]
[1759476684228,0.7455569,4459.9,4459.8,0.62890506]
[1759476684632,0.7455569,4459.9,4459.8,0.22558506]
[1759476686423,0.5324569,4459.9,4459.8,0.22558506]
[1759476687325,0.7410569,4459.9,4459.8,0.22558506]
[1759476691835,0.5324569,4459.9,4459.8,0.22558506]
[1759476692434,0.7410569,4459.9,4459.8,0.22558506]
[1759476695435,0.5324569,4459.9,4459.8,0.22558506]
[1759476695735,0.3146569,4459.9,4459.8,1.83795316]
[1759476695937,0.3146569,4459.9,4459.8,0.22558506]
[1759476696442,0.5544,4461.0,4460.5,0.40325]
[1759476696643,0.5544,4461.0,4460.6,0.224]
[1759476697244,0.55600127,4461.0,4460.6,0.224]
[1759476697942,0.55600127,4461.0,4460.5,0.40325]
[1759476698131,0.55600127,4461.0,4460.6,0.224]
[1759476698334,0.4273,4460.7,4460.6,0.224]
[1759476698535,0.7397,4460.7,4460.6,0.224]
[1759476700738,0.7397,4460.7,4460.6,0.4395]
[1759476701638,0.7397,4460.7,4460.6,0.224]
[1759476702838,0.7397,4460.7,4460.6,0.4395]
[1759476703248,0.7397,4460.7,4460.6,0.224]
[1759476705048,0.7397,4460.7,4460.6,0.4395]
[1759476705247,0.7397,4460.7,4460.6,0.6547]
[1759476706438,0.7397,4460.7,4460.6,0.9675]
[1759476706643,0.5163,4460.7,4460.6,0.9675]
[1759476709344,0.64500127,4461.0,4460.9,0.7435]
[1759476709545,0.64500127,4461.0,4460.9,0.9675]
[1759476709846,0.86840127,4461.0,4460.9,0.9675]
[1759476710348,0.86840127,4461.0,4460.9,1.37072]
[1759476711048,0.86840127,4461.0,4460.9,1.05792]
[1759476712251,0.86840127,4461.0,4460.9,1.37072]
[1759476713349,0.64500127,4461.0,4460.9,1.37072]
[1759476715247,0.00160127,4461.0,4460.9,1.37072]
[1759476715554,0.31400127,4461.0,4460.9,1.37072]
[1759476716549,0.51790127,4461.0,4460.9,1.37072]
[1759476716748,0.87100127,4461.0,4460.9,1.37072]
[1759476717049,0.87100127,4461.0,4460.9,1.05792]
[1759476717241,0.87100127,4461.0,4460.9,1.37072]
[1759476718849,100.87100127,4461.0,4460.9,1.37072]
[1759476720151,100.87100127,4461.0,4460.9,1.14672]
[1759476720351,100.87100127,4461.0,4460.9,1.05792]
[1759476725250,100.87100127,4461.0,4460.9,0.6547]
[1759476727458,100.87100127,4461.0,4460.9,0.9701]
[1759476728049,100.87100127,4461.0,4460.9,0.6547]
[1759476728658,100.87100127,4461.0,4460.9,0.9701]
[1759476728955,100.87100127,4461.0,4460.9,2.58054986]
[1759476729459,100.87100127,4461.0,4460.9,0.9701]
[1759476729655,100.87100127,4461.0,4460.9,0.6547]
[1759476729855,98.24073586,4461.0,4460.9,0.9755]
[1759476730056,98.44913586,4461.0,4460.9,0.9755]
[1759476730960,98.45157349,4461.0,4460.9,0.9755]
[1759476731461,97.57317349,4461.0,4460.9,0.9755]
[1759476732465,97.57317349,4461.0,4460.9,41.7755]
[1759476733361,96.73017349,4461.0,4460.9,41.7755]
[1759476733555,93.85417349,4461.0,4460.9,46.7755]
[1759476734060,93.44217349,4461.0,4460.9,46.7755]
[1759476734550,92.41955498,4461.0,4460.9,46.7755]
[1759476734754,91.50655498,4461.0,4460.9,46.7755]
[1759476736160,77.76147002,4461.0,4460.9,46.7755]
[1759476736355,77.42167002,4461.0,4460.9,81.7445]
[1759476736758,76.74167002,4461.0,4460.9,81.7445]
[1759476737361,76.48467002,4461.0,4460.9,81.7445]
[1759476738063,76.91207002,4461.0,4460.9,0.7515]
[1759476738263,77.07107002,4461.0,4460.9,37.5247688]
[1759476738461,71.03617038,4461.0,4460.9,35.5128]
[1759476738661,71.03617038,4461.0,4460.9,76.3128]
[1759476741369,70.78121923,4461.0,4460.9,76.3128]
[1759476744272,70.67001923,4461.0,4460.9,76.3128]
[1759476749268,70.67001923,4461.0,4460.7,2.0119688]
[1759476749269,0.1594,4460.9,4460.7,2.0119688]
[1759476749473,0.5928,4460.8,4460.5,3.6737]
[1759476749674,70.67001923,4461.0,4460.6,0.96185]
[1759476749675,0.5928,4460.7,4460.6,0.96185]
[1759476754080,0.5928,4460.7,4460.6,0.5586]
[1759476754579,0.5928,4460.7,4460.6,0.224]
[1759476755576,0.5928,4460.7,4460.6,0.5435]
[1759476758883,0.5928,4460.7,4460.6,0.224]
[1759476759287,0.5928,4460.7,4460.6,0.5435]
[1759476765586,0.4334,4460.7,4460.6,0.7496]
[1759476766392,0.4334,4460.7,4460.6,0.971]
[1759476766781,0.5925,4460.7,4460.6,0.971]
[1759476767393,0.5925,4460.7,4460.6,0.7496]
[1759476768790,0.4334,4460.7,4460.6,0.7496]
[1759476770790,0.5925,4460.7,4460.6,0.5435]
[1759476771093,0.5987,4460.1,4460.0,0.3195]
[1759476771294,0.5987,4460.1,4460.0,0.5435]
[1759476771687,0.2223,4460.1,4460.0,1.3743]
[1759476771890,0.4396,4460.6,4460.5,0.5502]
[1759476772191,3.8065,4460.6,4460.5,0.224]
[1759476772397,0.5987,4460.6,4460.5,0.8723]
[1759476772592,0.4396,4460.6,4460.5,1.0937]
[1759476772894,0.5987,4460.6,4460.5,0.8723]
[1759476773095,0.5987,4460.6,4460.5,0.6662]
[1759476773492,3.8065,4460.6,4460.5,0.6662]
[1759476773691,9.20975,4460.6,4460.5,0.224]
[1759476773888,8.8065,4460.6,4460.5,0.224]
[1759476775197,0.5987,4460.1,4460.0,0.1227]
[1759476775402,1.00199,4460.1,4460.0,0.22]
[1759476775588,0.5987,4460.1,4460.0,0.22]
[1759476775897,0.5987,4460.1,4460.0,0.5395]
[1759476776098,5.5987,4460.1,4460.0,0.5395]
[1759476776496,5.5987,4460.1,4460.0,0.22]
[1759476776901,8.8065,4460.1,4460.0,0.22]
[1759476777200,0.5987,4459.9,4459.8,0.00158506]
[1759476777602,5.8227,4459.9,4459.8,0.00158506]
[1759476780104,5.5987,4459.9,4459.8,0.32108506]
[1759476780305,5.8227,4459.9,4459.8,0.00158506]
[1759476784097,5.8227,4459.9,4459.8,0.31088506]
[1759476784300,5.5987,4459.9,4459.8,0.31088506]
[1759476784501,0.4396,4459.9,4459.8,0.51668506]
[1759476784704,0.4396,4459.9,4459.8,0.73438506]
[1759476785705,0.5985,4459.9,4459.8,0.00158506]
[1759476786195,0.5985,4459.9,4459.8,0.31088506]
[1759476786395,0.5985,4459.9,4459.8,0.00158506]
[1759476786802,0.8225,4459.9,4459.8,0.00158506]
[1759476790108,5.8225,4459.9,4459.8,0.00158506]
[1759476790808,0.5755,4459.1,4459.0,0.3093]
[1759476791007,3.7833,4459.1,4459.0,0.3093]
[1759476791305,3.626,4459.1,4459.0,0.6386]
[1759476791697,3.626,4459.1,4459.0,0.64148596]
[1759476791895,3.7833,4459.1,4459.0,0.64148596]
[1759476794010,3.7833,4459.1,4459.0,0.43568596]
[1759476794413,4.0073,4459.1,4459.0,0.43568596]
[1759476795218,3.7833,4459.1,4459.0,0.43568596]
[1759476795520,4.0073,4459.1,4459.0,0.64148596]
[1759476796206,3.85,4459.1,4459.0,0.64148596]
[1759476797213,3.626,4459.1,4459.0,0.64148596]
[1759476797412,3.85,4459.1,4459.0,0.64148596]
[1759476798411,3.85,4459.1,4459.0,0.85918596]
[1759476799214,3.626,4459.1,4459.0,0.85918596]
[1759476799414,3.85,4459.1,4459.0,0.85918596]
[1759476799609,3.626,4459.1,4459.0,0.85918596]
[1759476801617,3.7833,4459.1,4459.0,0.85918596]
[1759476803522,3.626,4459.1,4459.0,0.85918596]
[1759476807228,3.7834,4459.1,4459.0,0.31218596]
[1759476807429,3.7834,4459.1,4459.0,0.00288596]
[1759476807829,3.7834,4459.1,4459.0,0.32008596]
[1759476809528,3.7834,4459.1,4459.0,0.65548596]
[1759476811630,3.7834,4459.1,4459.0,0.45298596]
[1759476812736,3.7834,4459.1,4459.0,0.86118596]
[1759476812737,3.4207,4459.1,4459.0,0.86118596]
[1759476813637,3.2078,4459.6,4459.3,1.15676]
[1759476813937,3.2078,4459.6,4459.5,0.8798]
[1759476814339,3.4215,4459.6,4459.5,0.8798]
[1759476814927,3.6276,4459.6,4459.5,0.4527]
[1759476815133,3.785,4459.6,4459.5,0.6741]
[1759476815334,3.6276,4459.6,4459.5,0.8798]
[1759476817235,3.4215,4459.6,4459.5,0.8798]
[1759476818039,3.6276,4459.6,4459.5,0.8798]
[1759476821143,0.2137,4459.6,4459.5,0.8798]
[1759476821344,0.2137,4459.9,4459.8,0.7534]
[1759476824244,0.4198,4459.9,4459.8,0.7534]
[1759476824441,0.5772,4459.9,4459.8,0.7534]
[1759476825945,3.6276,4460.6,4460.5,0.6741]
[1759476827452,3.6276,4460.6,4460.5,0.8798]
[1759476829348,3.2078,4460.6,4460.5,0.8798]
[1759476829750,3.4215,4460.6,4460.5,0.8798]
[1759476830350,3.2078,4460.6,4460.5,0.8798]
[1759476831551,3.4215,4460.6,4460.5,0.8798]
[1759476832962,0.2137,4460.6,4460.5,0.8798]
[1759476833252,70.67001923,4461.0,4460.5,0.8798]
[1759476833555,71.08981923,4461.0,4460.9,0.5477]
[1759476833853,71.24721923,4461.0,4460.9,0.5477]
[1759476834261,70.67001923,4461.0,4460.9,0.7534]
[1759476835253,70.67001923,4461.0,4460.9,5.7534]
[1759476836354,70.67001923,4461.0,4460.9,5.9774]
[1759476837051,70.67001923,4461.0,4460.9,46.7774]
[1759476838950,71.24721923,4461.0,4460.9,0.5503]
[1759476841252,71.24721923,4461.0,4460.9,0.224]
[1759476841650,71.24721923,4461.0,4460.9,0.7548]
[1759476841952,71.08981923,4461.0,4460.9,0.963]
[1759476843658,71.24671923,4461.0,4460.9,0.224]
[1759476844555,71.64992923,4461.0,4460.9,0.224]
[1759476844761,0.5759,4460.2,4460.1,0.3078]
[1759476845060,0.5759,4460.2,4460.1,0.5318]
[1759476845363,0.5759,4460.2,4460.1,0.7548]
[1759476845562,0.419,4460.2,4460.1,0.7548]
[1759476846265,0.419,4460.2,4460.1,0.963]
[1759476847870,0.5759,4460.2,4460.1,0.963]
[1759476848567,0.5759,4460.2,4460.1,0.7548]
[1759476849366,0.419,4460.2,4460.1,0.963]
[1759476852069,0.2116,4460.2,4460.1,0.963]
[1759476852263,3.2078,4460.6,4460.1,0.963]
[1759476852264,3.2078,4460.6,4460.1,1.05848]
[1759476852466,0.419,4460.6,4460.5,0.3466]
[1759476852666,0.419,4460.6,4460.5,1.0866]
[1759476852874,70.88161923,4461.0,4460.9,0.739]
[1759476853069,70.88161923,4461.0,4460.9,0.963]
[1759476853259,70.88161923,4461.0,4460.9,1.36622]
[1759476853465,70.67001923,4461.0,4460.9,1.36622]
[1759476859970,71.08901923,4461.0,4460.9,0.963]
[1759476860171,71.24591923,4461.0,4460.9,0.5318]
[1759476860777,71.24591923,4461.0,4460.9,0.7548]
[1759476863575,71.08901923,4461.0,4460.9,0.7548]
[1759476863766,71.24591923,4461.0,4460.9,0.7548]
[1759476864168,71.08901923,4461.0,4460.9,0.7548]
[1759476864369,71.08901923,4461.0,4460.9,0.963]
[1759476865469,70.67001923,4461.0,4460.9,0.963]
[1759476865868,70.67001923,4461.0,4460.9,41.763]
[1759476866678,70.67001923,4461.0,4460.9,43.37343055]
[1759476873475,70.37200903,4461.0,4460.9,43.37343055]
[1759476875483,70.06800903,4461.0,4460.9,41.763]
[1759476877378,69.76900903,4461.0,4460.9,41.763]
[1759476877580,62.03847772,4461.0,4460.9,46.763]
[1759476878181,59.75647772,4461.0,4460.9,46.763]
[1759476878382,59.68147772,4461.0,4460.9,46.763]
[1759476878582,57.88047772,4461.0,4460.9,46.763]
[1759476879191,43.54970491,4461.0,4460.9,46.763]
[1759476879381,36.80581491,4461.0,4460.9,46.763]
[1759476879584,35.80553491,4461.0,4460.9,46.763]
[1759476879779,34.76644491,4461.0,4460.9,46.763]
[1759476880388,0.00243763,4461.0,4460.9,46.763]
[1759476880575,0.5715,4462.4,4462.3,0.93439]
[1759476880780,0.5715,4462.4,4462.3,1.15839]
[1759476880980,0.5715,4462.4,4462.3,0.5484]
[1759476881176,0.5715,4462.4,4462.3,41.024]
[1759476881376,3.2298,4462.9,4461.5,2.14213506]
[1759476881377,0.1572,4461.9,4461.7,1.93250804]
[1759476881583,0.5715,4461.8,4461.7,2.33733106]
[1759476881780,0.5715,4461.8,4461.7,0.55007302]
[1759476881980,0.5715,4461.8,4461.7,0.22567302]
[1759476882687,0.5715,4461.8,4461.7,0.55007302]
[1759476884491,0.5715,4461.8,4461.7,0.22567302]
[1759476885390,0.5715,4461.8,4461.7,0.55007302]
[1759476888395,0.4143,4461.8,4461.7,0.97597302]
[1759476889191,0.4143,4461.8,4461.7,0.75697302]
[1759476889396,0.5715,4461.8,4461.7,0.55007302]
[1759476890086,0.5715,4461.8,4461.7,0.22567302]
[1759476890291,0.5715,4461.8,4461.7,0.55007302]
[1759476892191,0.5715,4461.8,4461.7,0.22567302]
[1759476892585,0.5715,4461.8,4461.7,0.55007302]
[1759476892996,0.5715,4461.8,4461.7,0.22567302]
[1759476894496,0.5715,4461.8,4461.7,0.55007302]
[1759476895499,0.4143,4461.8,4461.7,0.97597302]
[1759476898297,0.4143,4462.2,4462.1,0.5313]
[1759476898505,0.4143,4462.2,4462.1,0.7553]
[1759476898802,0.4143,4462.2,4462.1,0.9743]
[1759476899201,0.2046,4462.2,4462.1,0.9743]
[1759476899501,0.4143,4462.6,4462.5,0.8823]
[1759476899806,0.4143,4462.6,4462.5,1.1063]
[1759476902794,0.7474,4462.6,4462.5,1.1063]
[1759476904108,0.2046,4462.6,4462.5,1.1063]
[1759476904404,0.02459954,4462.9,4462.5,1.1063]
[1759476904405,0.02459954,4462.9,4462.8,1.25195]
[1759476904591,0.02459954,4462.9,4462.8,1.47595]
[1759476907002,0.22999954,4462.9,4462.8,1.0729]
[1759476907503,0.55749954,4462.9,4462.8,1.0729]
[1759476908102,0.89059954,4462.9,4462.8,1.0729]
[1759476908302,0.89059954,4462.9,4462.8,0.7562]
[1759476908508,0.89059954,4462.9,4462.8,0.5528]
[1759476908703,0.89059954,4462.9,4462.8,0.224]
[1759476909504,0.89059954,4462.9,4462.8,0.7562]
[1759476910410,0.02459954,4462.9,4462.8,1.0729]
[1759476911010,0.02459954,4462.9,4462.8,41.8729]
[1759476913211,0.02459954,4462.9,4462.8,43.48100804]
[1759476914214,0.02459954,4462.9,4462.8,41.8729]
[1759476914414,0.02459954,4462.9,4462.8,43.48100804]
[1759476915318,0.02459954,4462.9,4462.8,41.8729]
[1759476916618,0.866,4464.2,4464.1,0.8489]
[1759476916813,0.866,4464.2,4464.1,1.0729]
[1759476917114,0.866,4464.2,4464.1,0.7562]
[1759476917315,0.866,4464.2,4464.1,0.224]
[1759476917618,0.8680349,4464.2,4464.1,0.224]
[1759476919722,0.8680349,4464.2,4464.1,0.5528]
[1759476920624,0.8680349,4464.2,4464.1,0.7562]
[1759476922926,0.8680349,4464.2,4464.1,0.5528]
[1759476924222,1.2709549,4464.2,4464.1,0.5528]
[1759476925528,1.2709549,4464.2,4464.1,0.224]
[1759476925734,1.0917,4463.6,4463.5,0.6866]
[1759476926329,1.0917,4463.6,4463.5,0.994]
[1759476927125,1.0917,4463.6,4463.5,0.224]
[1759476927821,1.4947,4463.3,4463.2,0.4797]
[1759476928223,0.71542,4463.1,4463.0,0.6135]
[1759476928429,1.49472,4463.1,4463.0,0.9209]
[1759476929235,1.2253,4463.0,4462.9,0.224]
[1759476930235,1.0917,4463.0,4462.9,0.7037]
[1759476931339,1.0917,4463.0,4462.9,0.224]
[1759476933033,0.7793,4463.0,4462.6,0.4797]
[1759476933232,1.1187,4462.7,4462.6,0.8167]
[1759476933543,1.52176,4462.7,4462.6,0.8167]
[1759476933739,1.52176,4462.7,4462.6,1.151]
[1759476936238,1.04246,4462.7,4462.6,1.151]
[1759476936439,0.6394,4462.7,4462.6,1.151]
[1759476939042,1.0424,4463.4,4463.3,0.337]
[1759476939247,1.5217,4463.4,4463.3,0.8144]
[1759476939446,1.5217,4463.4,4463.3,0.4774]
[1759476942450,1.5217,4463.4,4463.3,0.8144]
[1759476946552,1.5217,4463.4,4463.3,1.1487]
[1759476947347,1.0424,4463.4,4463.3,1.1487]
[1759476947850,0.40299,4463.5,4463.3,1.1487]
[1759476948046,0.40299,4463.5,4463.4,0.4774]
[1759476948244,0.72029,4463.5,4463.4,1.1487]
[1759476948545,1.52169,4463.5,4463.4,1.1487]
[1759476952049,1.52169,4463.5,4463.4,0.4774]
[1759476952253,1.04242,4463.1,4463.0,0.5296]
[1759476952548,1.52172,4463.1,4463.0,0.337]
[1759476952754,1.52172,4463.1,4463.0,1.007]
[1759476953551,1.52172,4463.1,4463.0,1.3413]
[1759476954149,1.04242,4463.1,4463.0,1.3413]
[1759476954653,0.72027,4463.7,4463.6,0.337]
[1759476954857,0.72027,4463.7,4463.6,1.1487]
[1759476955252,0.72024,4464.1,4464.0,1.3413]
[1759476955450,1.2053801,4464.1,4464.0,1.3413]
[1759476956662,0.8024401,4464.1,4464.0,1.3413]
[1759476957161,1.2053701,4464.1,4464.0,1.3413]
[1759476958251,2.0067701,4464.1,4464.0,1.3413]
[1759476958454,2.0067701,4464.1,4464.0,0.4774]
[1759476959160,1.52167,4463.7,4463.6,1.0384]
[1759476959559,1.52167,4463.7,4463.6,1.3727]
[1759476960161,0.6394,4463.7,4463.6,1.3727]
[1759476960356,0.3173,4463.7,4463.6,1.3727]
[1759476960667,1.52167,4463.7,4463.6,1.3727]
[1759476961967,1.04982,4463.1,4463.0,0.8241]
[1759476962266,1.52462,4463.1,4463.0,1.3058]
[1759476965359,1.04985,4462.8,4462.7,1.0215]
[1759476965559,1.52465,4462.8,4462.7,1.0215]
[1759476965765,1.52465,4462.8,4462.7,1.3372]
[1759476967577,1.04985,4462.8,4462.7,1.3372]
[1759476968074,0.6468,4461.8,4461.7,0.48337302]
[1759476968275,1.1216,4461.8,4461.7,0.79917302]
[1759476968474,1.1216,4461.8,4461.7,0.48337302]
[1759476968670,1.1216,4461.8,4461.7,0.00167302]
[1759476969074,1.1216,4461.8,4461.7,0.48337302]
[1759476969476,1.1216,4461.8,4461.7,0.79917302]
[1759476969672,1.1216,4461.8,4461.7,1.11487302]
[1759476970372,0.6468,4462.5,4462.1,0.4817]
[1759476970569,0.4748,4463.4,4462.5,0.6665]
[1759476970866,2.00353762,4463.3,4463.2,0.7975]
[1759476971777,2.00353762,4463.3,4463.2,0.4817]
[1759476974170,0.40306,4462.6,4462.5,1.298]
[1759476974378,0.72146,4462.6,4462.5,1.298]
[1759476974683,1.04986,4462.6,4462.5,1.298]
[1759476975283,0.6468,4462.6,4462.5,1.298]
[1759476975476,1.04986,4462.6,4462.5,1.298]
[1759476978475,1.52466,4462.6,4462.5,0.4817]